[Event "22nd OIBM 2018"]
[Site "Gmund am Tegernsee"]
[Date "2018.10.30"]
[Round "4"]
[White "Wiendieck, Joerg"]
[Black "Oberhofer, Cedric"]
[Result "0-1"]
[ECO "A22"]
[WhiteElo "1995"]
[BlackElo "2213"]
[Annotator "ChessBase"]
[PlyCount "84"]
[EventDate "2018.10.27"]
[EventType "swiss"]
[EventCountry "GER"]
[SourceTitle "playchess.com"]
[Source "ChessBase"]
[SourceQuality "1"]
[TimeControl "40/5400+30:1800+30"]

1. c4 {[%emt 0:00:00]} e5 {[%emt 0:00:00]} 2. Nc3 {[%emt 0:00:00]} Nf6 {[%emt 0:00:00]} 3. g3 {[%emt 0:00:43]} d5 {[%emt 0:00:00]} 4. cxd5 {[%emt 0:00:25]} Nxd5 {[%emt 0:00:07]} 5. Bg2 {[%emt 0:00:23]} Nb6 {[%emt 0:00:07]} 6. Nf3 {[%emt 0:01:23]} Nc6 {[%emt 0:00:07]} 7. O-O {[%emt 0:01:04]} Be7 {[%emt 0:00:34]} 8. d3 {[%emt 0:08:33]} O-O {[%emt 0:00:55]} 9. a3 {[%emt 0:00:52]} Be6 {[%emt 0:01:55]} 10. b4 {[%emt 0:01:51]} a5 {[%emt 0:00:32]} 11. b5 {[%emt 0:03:06]} Nd4 {[%emt 0:00:14]} 12. Bb2 {[%emt 0:08:49]} f6 {[%emt 0:09:29]} 13. Nd2 {[%emt 0:06:01]} c6 {[%emt 0:09:49]} 14. a4 {[%emt 0:05:41]} cxb5 {[%emt 0:07:29]} 15. Nxb5 {[%emt 0:03:10]} Nxb5 16. axb5 {[%emt 0:00:27]} Qd7 {[%emt 0:18:13]} 17. Ba3 Bxa3 {[%emt 0:06:05]} 18. Rxa3 {[%emt 0:09:50]} Qxb5 {[%emt 0:00:40]} 19. Bxb7 {[%emt 0:04:44]} Rab8 {[%emt 0:00:14]} 20. Bg2 {[%emt 0:00:45]} Qb4 {[%emt 0:04:36]} 21. Nb1 {[%emt 0:02:36]} Rfc8 {[%emt 0:09:59]} 22. Qd2 {[%emt 0:06:32]} Qxd2 {[%emt 0:01:49]} 23. Nxd2 {[%emt 0:00:10]} Rc2 {[%emt 0:00:52]} 24. Ne4 {[%emt 0:08:29]} a4 {[%emt 0:00:19]} 25. e3 {[%emt 0:03:19]} Rd8 {[%emt 0:07:49]} 26. Rd1 {[%emt 0:04:33]} Bb3 {[%emt 0:01:21]} 27. Bf1 {[%emt 0:01:55]} Nc4 {[%emt 0:07:17]} 28. Raa1 {[%emt 0:00:15]} Nb2 {[%emt 0:00:08]} 29. Rd2 {[%emt 0:04:36]} f5 {[%emt 0:03:09]} 30. Rxc2 {[%emt 0:01:09]} Bxc2 {[%emt 0:00:05]} 31. Nc5 {[%emt 0:00:20]} Rd5 {[%emt 0:02:53]} 32. Ra2 {[%emt 0:07:32]} Rxc5 {[%emt 0:01:32]} 33. Rxb2 {[%emt 0:00:11]} Bb3 {[%emt 0:00:29]} 34. Rb1 {[%emt 0:01:21]} Ra5 {[%emt 0:02:22]} 35. d4 {[%emt 0:02:25]} exd4 {[%emt 0:00:09]} 36. exd4 {[%emt 0:00:16]} Kf8 {[%emt 0:00:04]} 37. Kg2 {[%emt 0:00:41]} Bd5+ {[%emt 0:02:13]} 38. f3 {[%emt 0:00:29]} a3 {[%emt 0:01:29]} 39. Kf2 {[%emt 0:01:18]} a2 {[%emt 0:01:28]} 40. Ra1 {[%emt 0:00:09]} Ra3 {[%emt 0:00:46]} 41. Be2 {[%emt 0:30:31]} Rc3 {[%emt 0:07:16]} 42. Ke1 {[%emt 0:00:00]} Rc2 {[%emt 0:00:17]} 0-1

[Event "22nd OIBM 2018"]
[Site "Gmund am Tegernsee"]
[Date "2018.10.30"]
[Round "4"]
[White "Wolf, Pablo"]
[Black "Leeb, Simon"]
[Result "1-0"]
[ECO "B10"]
[WhiteElo "1983"]
[BlackElo "2203"]
[Annotator "NA"]
[PlyCount "65"]
[EventDate "2018.10.27"]
[EventType "swiss"]
[EventCountry "GER"]
[SourceTitle "playchess.com"]
[Source "ChessBase"]
[SourceQuality "1"]
[TimeControl "40/5400+30:1800+30"]

1. e4 {[%emt 0:00:00] Lukacs,P} c6 {[%emt 0:00:00]} 2. Ne2 {[%emt 0:00:03]} d5 {[%emt 0:01:59]} 3. e5 {[%emt 0:00:46]} c5 {[%emt 0:00:25]} 4. d4 {[%emt 0:01:44]} Nc6 {[%emt 0:03:39]} 5. c3 {[%emt 0:01:52]} cxd4 {[%emt 0:05:42] B12: Caro-Kann: Advance Variation} (5... Bg4 6. h3 Bxe2 7. Bxe2 e6 8. O-O Qb6 9. dxc5 Bxc5 10. b4 Be7 11. Be3 Qc7 12. f4 Nh6 13. Na3 {½-½ (44) Vachier Lagrave,M (2795)-Anand,V (2786) Stavanger 2017}) 6. cxd4 {[%emt 0:00:30]} Bf5 {[%emt 0:00:14]} 7. Nbc3 {[%emt 0:11:21]} e6 {[%emt 0:00:53] LiveBook: 28 Games} 8. a3 {[%emt 0:04:48]} a6 {[%emt 0:03:02]} 9. Be3 {[%emt 0:08:56]} f6 {[%emt 0:09:46]} 10. f4 $146 {[%emt 0:09:34]} ({Predecessor:} 10. h3 h5 11. exf6 Nxf6 12. g3 Bd6 13. Bg2 {½-½ (48) Davies,N (2515)-Speelman,J (2600) Southend 1999 CBM 071 [Lukacs,P]}) 10... fxe5 {[%emt 0:08:03]} 11. fxe5 {[%emt 0:01:17]} Be7 {[%emt 0:00:05]} 12. Nf4 {[%emt 0:03:31]} Nh6 {[%emt 0:05:59]} 13. Be2 {[%emt 0:02:50]} Qb6 14. b4 {[%emt 0:08:00]} Nxe5 {[%emt 0:13:07]} 15. Ncxd5 {[%emt 0:10:33]} exd5 {[%emt 0:12:32]} 16. Nxd5 {[%emt 0:00:22]} Qc6 {[%emt 0:08:49]} 17. dxe5 {[%emt 0:03:48]} Rd8 {[%emt 0:13:13]} 18. Bf3 {[%emt 0:01:22]} Rxd5 {[%emt 0:02:23]} 19. Qxd5 {[%emt 0:02:09]} Qc3+ {[%emt 0:00:08]} 20. Ke2 $18 {[%emt 0:04:00]} Ng4 {[%emt 0:01:41]} 21. Qd4 {[%emt 0:04:13]} Qc2+ {[%emt 0:03:58]} 22. Bd2 {[%emt 0:00:09]} Qc8 {[%emt 0:00:57]} 23. h3 {[%emt 0:01:07]} Nf6 {[%emt 0:01:36]} 24. Rac1 {[%emt 0:06:38]} Qe6 {[%emt 0:00:45]} 25. g4 {[%emt 0:00:28]} Bg6 {[%emt 0:00:51]} 26. Bxb7 {[%emt 0:00:55]} O-O {[%emt 0:01:21]} 27. Qc4 {[%emt 0:00:37]} Qxc4+ {[%emt 0:00:40]} 28. Rxc4 {[%emt 0:00:04]} Rd8 {[%emt 0:00:04]} 29. exf6 {[%emt 0:01:01]} Bd3+ {[%emt 0:00:06]} 30. Ke1 {[%emt 0:00:37]} Bxc4 {[%emt 0:00:06]} 31. fxe7 {[%emt 0:00:14]} Re8 {[%emt 0:00:11]} 32. Bg5 {[%emt 0:00:04]} Bb5 {[%emt 0:00:05]} 33. Bd5+ {[%emt 0:00:56]} 1-0

[Event "22nd OIBM 2018"]
[Site "Gmund am Tegernsee"]
[Date "2018.10.30"]
[Round "4"]
[White "Becker, Wolfgang"]
[Black "Boehm, Martin"]
[Result "0-1"]
[ECO "B22"]
[WhiteElo "1858"]
[BlackElo "2195"]
[Annotator "NA"]
[PlyCount "62"]
[EventDate "2018.10.27"]
[EventType "swiss"]
[EventCountry "GER"]
[SourceTitle "playchess.com"]
[Source "ChessBase"]
[SourceQuality "1"]
[TimeControl "40/5400+30:1800+30"]

1. e4 {[%emt 0:00:00]} c5 {[%emt 0:00:00]} 2. c3 {[%emt 0:00:00]} Nf6 {[%emt 0:00:42]} 3. e5 {[%emt 0:00:02]} Nd5 {[%emt 0:00:02]} 4. d4 {[%emt 0:00:16]} cxd4 {[%emt 0:01:38]} 5. Nf3 {[%emt 0:00:20]} Nc6 {[%emt 0:01:12]} 6. cxd4 {[%emt 0:00:33]} e6 {[%emt 0:00:31]} 7. Nc3 {[%emt 0:05:25]} Nxc3 {[%emt 0:07:14]} 8. bxc3 {[%emt 0:00:32]} d6 {[%emt 0:00:31]} 9. exd6 {[%emt 0:03:47]} Qxd6 {[%emt 0:02:51]} 10. Bd3 {[%emt 0:01:49] B22: Sicilian: 2 c3} Be7 {[%emt 0:00:09]} 11. Qe2 {[%emt 0:04:04]} b6 {[%emt 0:16:45]} 12. O-O {[%emt 0:01:00]} Bb7 {[%emt 0:00:06] LiveBook: 3 Games} 13. Re1 {[%emt 0:02:20]} Rc8 {[%emt 0:12:43]} 14. Qe4 $146 {[%emt 0:19:58]} ({Predecessor:} 14. Bg5 Qd8 15. Qe3 h6 16. Bf4 Bd6 17. Ne5 Nxe5 18. dxe5 {½-½ (34) Sevillano,E (2461)-Molner,M (2455) Las Vegas 2011}) 14... Na5 {[%emt 0:06:26]} 15. Bb5+ {[%emt 0:02:01]} Kf8 16. Qd3 {[%emt 0:06:08]} f6 {[%emt 0:06:17]} 17. a4 {[%emt 0:02:04]} Qd5 {[%emt 0:03:45]} 18. Bf4 {[%emt 0:14:06]} Kf7 {[%emt 0:01:06]} 19. Re2 {[%emt 0:01:59]} g5 {[%emt 0:08:16]} 20. Bd2 {[%emt 0:01:33]} g4 {[%emt 0:00:38]} 21. Ne1 {[%emt 0:01:30]} Bd6 {[%emt 0:00:45]} 22. Rc1 {[%emt 0:03:43]} Nc4 {[%emt 0:01:07]} 23. Bxc4 {[%emt 0:01:13]} Qxc4 {[%emt 0:01:09]} 24. Qe3 {[%emt 0:00:52]} Bf4 {[%emt 0:03:28]} 25. Qd3 {[%emt 0:01:05]} Bb8 {[%emt 0:01:59]} 26. Qe3 {[%emt 0:00:50]} Ba6 {[%emt 0:03:57]} 27. Nd3 {[%emt 0:00:35]} Rce8 {[%emt 0:01:20]} 28. Ne5+ {[%emt 0:06:33]} Bxe5 {[%emt 0:01:29]} 29. dxe5 {[%emt 0:01:19]} Qxe2 {[%emt 0:00:07]} 30. Qh6 {[%emt 0:00:12]} Qxe5 {[%emt 0:00:26]} 31. Re1 $19 {[%emt 0:02:31]} Qf5 {[%emt 0:00:19]} 0-1

[Event "22nd OIBM 2018"]
[Site "Gmund am Tegernsee"]
[Date "2018.10.30"]
[Round "4"]
[White "Wehrmann, Henning"]
[Black "Kaiser, Elmar"]
[Result "0-1"]
[ECO "C07"]
[WhiteElo "1828"]
[BlackElo "2185"]
[Annotator "NA"]
[PlyCount "74"]
[EventDate "2018.10.27"]
[EventType "swiss"]
[EventCountry "GER"]
[SourceTitle "playchess.com"]
[Source "ChessBase"]
[SourceQuality "1"]
[TimeControl "40/5400+30:1800+30"]

1. e4 {[%emt 0:00:00]} e6 {[%emt 0:01:37]} 2. d4 {[%emt 0:00:00]} d5 {[%emt 0:00:12]} 3. Nd2 {[%emt 0:00:00]} c5 {[%emt 0:00:40]} 4. Ngf3 {[%emt 0:01:03]} Nc6 {[%emt 0:02:37]} 5. Bb5 {[%emt 0:01:08]} Qb6 {[%emt 0:04:48]} 6. exd5 {[%emt 0:05:19] C07: French Tarrasch: 3...c5, 4 Ngf3 and 4 exd5 Qxd5} Qxb5 {[%emt 0:00:35]} 7. c4 {[%emt 0:00:52]} Qa6 {[%emt 0:03:15]} 8. dxc6 {[%emt 0:00:25]} Qxc6 {[%emt 0:00:04]} 9. O-O {[%emt 0:04:11]} Nf6 {[%emt 0:01:25]} 10. Re1 {[%emt 0:01:21]} (10. Ne5 Qc7 11. Ndf3 Be7 12. Bf4 Qa5 13. dxc5 O-O {1-0 (43) Gopal,G (2572)-Sengupta,D (2466) Dubai 2009}) 10... Be7 {[%emt 0:02:24]} 11. Ne5 $146 {[%emt 0:09:51]} ({Predecessor:} 11. b3 Qc7 12. Bb2 O-O 13. Qe2 Bd7 {1-0 (33) Hausner,I (2410)-Dostal,R Policka 1997}) 11... Qa6 {[%emt 0:01:01]} 12. Ne4 {[%emt 0:04:59]} cxd4 {[%emt 0:05:22]} ({Black should try} 12... Nxe4 $14 13. Rxe4 cxd4) 13. Qxd4 {[%emt 0:11:29]} Nxe4 {[%emt 0:01:14]} 14. Rxe4 {[%emt 0:03:01]} f6 {[%emt 0:03:40]} 15. Nd3 {[%emt 0:07:59]} e5 {[%emt 0:02:23]} 16. Nxe5 {[%emt 0:00:21]} Bf5 {[%emt 0:00:06]} 17. Re1 {[%emt 0:05:44]} fxe5 {[%emt 0:01:45]} 18. Qxe5 {[%emt 0:04:47]} Qf6 {[%emt 0:00:43]} 19. g4 Bxg4 {[%emt 0:15:46]} 20. Bg5 {[%emt 0:04:02]} Qxe5 {[%emt 0:00:08]} 21. Rxe5 {[%emt 0:00:19]} O-O-O {[%emt 0:06:06]} 22. Rxe7 {[%emt 0:06:38]} Rd7 {[%emt 0:02:56]} 23. Re4 {[%emt 0:04:03]} Bf3 {[%emt 0:03:43]} 24. Rf4 {[%emt 0:00:32]} Bc6 {[%emt 0:01:03]} 25. Rg4 {[%emt 0:01:39]} Re8 {[%emt 0:02:00]} 26. Be3 {[%emt 0:00:14]} b6 {[%emt 0:04:46]} 27. Re1 {[%emt 0:06:04]} g6 {[%emt 0:02:29]} 28. b4 {[%emt 0:00:33]} Rd3 {[%emt 0:05:51]} 29. b5 $11 {[%emt 0:02:13]} Bd7 {[%emt 0:02:15]} 30. Rh4 {[%emt 0:00:40]} h5 {[%emt 0:00:53]} 31. Rc1 {[%emt 0:06:11]} Kb7 {[%emt 0:04:11]} 32. Rf4 {[%emt 0:02:32]} Bf5 {[%emt 0:00:53]} 33. c5 {[%emt 0:00:45]} bxc5 {[%emt 0:00:26]} 34. Bxc5 {[%emt 0:03:59]} Rc8 {[%emt 0:06:13]} 35. Rfc4 {[%emt 0:01:55]} Rd5 {[%emt 0:02:27]} 36. R4c3 {[%emt 0:00:55]} Bd3 {[%emt 0:01:09]} 37. a4 {[%emt 0:00:34]} Rg5+ {[%emt 0:00:33]} 0-1

[Event "22nd OIBM 2018"]
[Site "Gmund am Tegernsee"]
[Date "2018.10.30"]
[Round "4"]
[White "Dartmann Aubanell, Catriona"]
[Black "Goldbeck, Lars"]
[Result "0-1"]
[ECO "B40"]
[WhiteElo "1622"]
[BlackElo "2184"]
[Annotator "NA"]
[PlyCount "45"]
[EventDate "2018.10.27"]
[EventType "swiss"]
[EventCountry "GER"]
[SourceTitle "playchess.com"]
[Source "ChessBase"]
[SourceQuality "1"]
[TimeControl "40/5400+30:1800+30"]

1. e4 {[%emt 0:00:00]} c5 {[%emt 0:00:00]} 2. Nf3 {[%emt 0:00:00]} e6 {[%emt 0:00:00]} 3. c3 {[%emt 0:00:00]} Nf6 {[%emt 0:00:00]} 4. e5 {[%emt 0:00:00]} Nd5 {[%emt 0:00:00]} 5. d4 {[%emt 0:00:07]} cxd4 {[%emt 0:00:00]} 6. cxd4 {[%emt 0:00:06]} d6 {[%emt 0:00:01]} 7. Be2 {[%emt 0:02:39]} Be7 {[%emt 0:01:17]} 8. O-O {[%emt 0:00:25]} O-O {[%emt 0:00:08]} 9. Nbd2 {[%emt 0:02:24]} Nf4 10. Bc4 {[%emt 0:05:52]} d5 {[%emt 0:06:46]} 11. Bb3 {[%emt 0:00:55]} Nc6 {[%emt 0:01:01]} 12. a3 {[%emt 0:01:58]} f6 {[%emt 0:07:50]} 13. exf6 Bxf6 {[%emt 0:04:06]} 14. Nb1 {[%emt 0:03:09]} Nd3 {[%emt 0:00:30]} 15. Nc3 {[%emt 0:02:15]} Bd7 {[%emt 0:00:53]} 16. Re1 {[%emt 0:04:10]} Rc8 $11 {[%emt 0:11:18]} 17. Be3 {[%emt 0:05:23]} Na5 {[%emt 0:06:29]} 18. Bc2 {[%emt 0:03:15]} Nc4 {[%emt 0:01:21]} 19. Qb1 {[%emt 0:05:58]} Qe8 {[%emt 0:07:46]} 20. Bg5 {[%emt 0:05:13]} Qf7 {[%emt 0:07:12]} 21. Re2 {[%emt 0:04:28]} Bxg5 {[%emt 0:00:30]} 22. Nxg5 {[%emt 0:00:30]} Qf6 {[%emt 0:00:01]} 23. Nf3 {[%emt 0:02:50]} 0-1

[Event "22nd OIBM 2018"]
[Site "Gmund am Tegernsee"]
[Date "2018.10.31"]
[Round "5"]
[White "Imnadze, Nato"]
[Black "Kick, Joachim"]
[Result "0-1"]
[ECO "C22"]
[WhiteElo "2291"]
[BlackElo "2070"]
[Annotator "NA RC"]
[PlyCount "90"]
[EventDate "2018.10.27"]
[EventType "swiss"]
[EventCountry "GER"]
[SourceTitle "playchess.com"]
[Source "ChessBase"]
[SourceQuality "1"]
[TimeControl "40/5400+30:1800+30"]

1. e4 {[%emt 0:00:00]} e5 {[%emt 0:00:00]} 2. d4 {[%emt 0:03:22]} exd4 {[%emt 0:00:00]} 3. Qxd4 {[%emt 0:00:04]} Nc6 {[%emt 0:00:19]} 4. Qe3 {[%emt 0:00:03]} Nf6 {[%emt 0:00:18]} 5. Bd2 {[%emt 0:00:28]} Bb4 {[%emt 0:06:09]} 6. Nc3 {[%emt 0:01:07]} O-O {[%emt 0:00:18]} 7. O-O-O {[%emt 0:00:05]} Re8 {[%emt 0:00:10]} 8. Qg3 {[%emt 0:02:06]} Nxe4 {[%emt 0:01:09]} 9. Nxe4 {[%emt 0:04:37]} Rxe4 {[%emt 0:00:22]} 10. c3 {[%emt 0:02:55] C22: Centre Game} Be7 {[%emt 0:00:58]} 11. Bd3 {[%emt 0:06:12]} (11. f4 d5 12. Bd3 Bf5 13. Nf3 Qd7 14. Bxe4 Bxe4 15. Be3 Na5 16. Bd4 f6 17. Rhe1 Qa4 18. Rxe4 dxe4 {0-1 (31) Kriebel,T (2445)-Michalik,P (2554) Slovakia 2017}) 11... Bh4 {[%emt 0:00:42]} 12. Qf3 {[%emt 0:01:33]} Re8 {[%emt 0:01:54]} 13. g3 {[%emt 0:03:47]} Bf6 $146 {[%emt 0:17:48]} ({Predecessor:} 13... Ne5 14. Qe4 Nxd3+ 15. Qxd3 Bf6 16. h4 d6 17. f3 g6 {0-1 (58) Tohirjonova,H (2135)-Vul,A (2287) Tashkent 2015}) 14. Bc2 {[%emt 0:04:52]} Ne5 {[%emt 0:28:35]} 15. Qe4 {[%emt 0:01:36]} g6 {[%emt 0:00:30]} 16. Be3 {[%emt 0:15:26]} d6 {[%emt 0:03:55]} 17. Bd4 {[%emt 0:00:11]} d5 {[%emt 0:11:02]} 18. Qg2 {[%emt 0:02:35]} c6 {[%emt 0:03:57]} 19. h4 {[%emt 0:03:38]} Ng4 {[%emt 0:09:43]} 20. h5 {[%emt 0:07:08]} g5 {[%emt 0:02:54]} 21. Qf3 {[%emt 0:09:00]} Ne5 {[%emt 0:04:02]} 22. Bxe5 {[%emt 0:01:39]} Rxe5 {[%emt 0:00:41]} 23. g4 {[%emt 0:00:18]} h6 {[%emt 0:00:38]} 24. Qd3 {[%emt 0:02:54]} Bg7 {[%emt 0:00:09]} 25. Nf3 {[%emt 0:07:58]} Re8 {[%emt 0:00:09]} 26. Nd4 {[%emt 0:01:22]} Qf6 {[%emt 0:00:58]} 27. Kb1 {[%emt 0:00:25]} Bxg4 {[%emt 0:02:13]} 28. f3 {[%emt 0:00:46]} Bd7 {[%emt 0:00:16]} 29. f4 {[%emt 0:01:50]} g4 {[%emt 0:00:07]} 30. Qh7+ {[%emt 0:01:42]} Kf8 {[%emt 0:00:07]} 31. Rhg1 {[%emt 0:00:01]} c5 {[%emt 0:01:52]} 32. Nb3 {[%emt 0:03:47]} b6 {[%emt 0:01:28]} 33. Rxd5 {[%emt 0:00:01]} Be6 {[%emt 0:00:28]} 34. Re5 {[%emt 0:02:43]} Rad8 {[%emt 0:01:15]} 35. Ree1 {[%emt 0:06:12]} a5 {[%emt 0:00:36]} 36. a4 {[%emt 0:00:58]} Bc8 {[%emt 0:00:59]} 37. Nc1 {[%emt 0:03:48]} c4 {[%emt 0:00:15]} 38. Ne2 {[%emt 0:00:47]} Bb7 $2 {[%emt 0:01:08]} (38... Rd5 $19 39. Ng3 Rxe1+ 40. Rxe1 Qxf4) 39. Nd4 $2 {[%emt 0:01:01]} ({Wrong is} 39. Rxg4 $2 Rd2 $19) (39. Ng3 $11) 39... Rxe1+ {[%emt 0:00:07]} 40. Rxe1 {[%emt 0:00:02]} Rxd4 {[%emt 0:00:34]} 41. cxd4 {[%emt 0:03:15]} Qxd4 {[%emt 0:00:36]} 42. Re5 {[%emt 0:00:07]} g3 {[%emt 0:07:03]} 43. Bg6 {[%emt 0:13:17]} fxg6 {[%emt 0:01:02]} 44. hxg6 {[%emt 0:03:00]} Be4+ {[%emt 0:04:32]} 45. Ka2 {[%emt 0:01:11]} g2 {[%emt 0:05:43]} 0-1

[Event "22nd OIBM 2018"]
[Site "Gmund am Tegernsee"]
[Date "2018.10.31"]
[Round "5"]
[White "Boehm, Martin"]
[Black "Forchert, Martin"]
[Result "1-0"]
[ECO "D71"]
[WhiteElo "2195"]
[BlackElo "2363"]
[Annotator "NA RC"]
[PlyCount "73"]
[EventDate "2018.10.27"]
[EventType "swiss"]
[EventCountry "GER"]
[SourceTitle "playchess.com"]
[Source "ChessBase"]
[SourceQuality "1"]
[TimeControl "40/5400+30:1800+30"]

1. d4 {[%emt 0:00:00]} Nf6 {[%emt 0:00:00]} 2. c4 {[%emt 0:00:00]} g6 {[%emt 0:00:00]} 3. g3 {[%emt 0:00:24]} Bg7 {[%emt 0:00:00]} 4. Bg2 {[%emt 0:00:04]} d5 {[%emt 0:00:00]} 5. Nc3 {[%emt 0:00:52]} dxc4 {[%emt 0:00:31]} 6. Nf3 {[%emt 0:02:18]} c6 {[%emt 0:00:12]} 7. O-O {[%emt 0:00:24]} Nbd7 {[%emt 0:02:57]} 8. e4 {[%emt 0:02:35]} Nb6 {[%emt 0:08:48]} 9. h3 {[%emt 0:00:39]} O-O {[%emt 0:01:02]} 10. a4 {[%emt 0:00:46] D78: Fianchetto Grünfeld: 6 0-0 c6} a5 {[%emt 0:06:39]} 11. Be3 {[%emt 0:06:08]} (11. Qe2 e5 12. dxe5 Nfd7 13. Bg5 {1-0 (36) Ivanisevic,I (2610)-Sedlak,N (2577) Ulcinj 2014}) 11... h6 $146 {[%emt 0:07:42]} ({Predecessor:} 11... Ne8 12. Qe2 Nd6 {½-½ (12) Ostojic,N (2398)-Lajthajm,B (2498) Vrnjacka Banja 2008}) 12. Qd2 {[%emt 0:09:05]} Kh7 {[%emt 0:00:06]} 13. Rad1 {[%emt 0:06:23]} Be6 {[%emt 0:00:57]} 14. Ne5 {[%emt 0:05:19]} Nfd7 {[%emt 0:03:55]} 15. Ng4 {[%emt 0:06:13]} Bxg4 {[%emt 0:11:38]} 16. hxg4 {[%emt 0:00:50]} Qc7 {[%emt 0:00:05]} 17. g5 {[%emt 0:03:51]} hxg5 {[%emt 0:14:12]} 18. e5 {[%emt 0:04:23]} Rad8 {[%emt 0:02:13]} 19. e6 {[%emt 0:02:38]} Ne5 {[%emt 0:03:48]} 20. Qe2 {[%emt 0:01:12]} Nd3 {[%emt 0:02:09]} 21. exf7 {[%emt 0:03:48]} e5 {[%emt 0:14:40]} 22. Ne4 {[%emt 0:08:53]} Rxf7 {[%emt 0:03:08]} 23. Nxg5+ {[%emt 0:02:53]} Kg8 $18 {[%emt 0:00:01]} 24. dxe5 {[%emt 0:01:57]} Nd5 {[%emt 0:01:57]} 25. Nxf7 {[%emt 0:02:11]} Qxf7 {[%emt 0:00:23]} 26. Bg5 {[%emt 0:00:45]} Re8 {[%emt 0:00:28]} 27. f4 {[%emt 0:01:37]} Bf8 {[%emt 0:00:12]} 28. Rf3 {[%emt 0:00:39]} Bc5+ {[%emt 0:02:45]} 29. Kf1 {[%emt 0:00:02]} Qf5 {[%emt 0:03:35]} 30. Rfxd3 {[%emt 0:08:07]} cxd3 {[%emt 0:00:07]} 31. Bxd5+ {[%emt 0:00:34]} cxd5 {[%emt 0:00:06]} 32. Qxd3 {[%emt 0:00:04]} Qh3+ {[%emt 0:01:23]} 33. Ke1 {[%emt 0:00:10]} Bb4+ {[%emt 0:00:20]} 34. Kf2 {[%emt 0:00:10]} Qh2+ {[%emt 0:08:18]} 35. Kf3 {[%emt 0:00:04]} Kh7 {[%emt 0:00:09]} 36. Qxd5 {[%emt 0:09:53]} Qh5+ {[%emt 0:00:08]} 37. Kg2 {[%emt 0:00:13]} 1-0

[Event "22nd OIBM 2018"]
[Site "Gmund am Tegernsee"]
[Date "2018.10.31"]
[Round "5"]
[White "Yakimenko, Alexander A."]
[Black "Singer, Christoph"]
[Result "1/2-1/2"]
[ECO "C67"]
[WhiteElo "2101"]
[BlackElo "2344"]
[Annotator "ChessBase"]
[PlyCount "81"]
[EventDate "2018.10.27"]
[EventType "swiss"]
[EventCountry "GER"]
[SourceTitle "playchess.com"]
[Source "ChessBase"]
[SourceQuality "1"]
[TimeControl "40/5400+30:1800+30"]

1. e4 {[%emt 0:00:00]} e5 {[%emt 0:00:00]} 2. Nf3 {[%emt 0:00:00]} Nc6 {[%emt 0:00:00]} 3. Bb5 {[%emt 0:00:28]} Nf6 {[%emt 0:00:00]} 4. O-O {[%emt 0:01:13]} Nxe4 {[%emt 0:00:00]} 5. Re1 {[%emt 0:00:14]} Nd6 {[%emt 0:00:07]} 6. Nxe5 {[%emt 0:00:08]} Be7 {[%emt 0:00:06]} 7. Bf1 {[%emt 0:00:48]} O-O {[%emt 0:11:50]} 8. d4 {[%emt 0:09:43]} Nf5 {[%emt 0:00:47]} 9. c3 {[%emt 0:02:09]} d5 {[%emt 0:07:49]} 10. Bf4 {[%emt 0:12:33]} Nxe5 {[%emt 0:07:50]} 11. Bxe5 {[%emt 0:01:07]} c5 {[%emt 0:02:25]} 12. Bd3 {[%emt 0:06:33]} c4 {[%emt 0:19:20]} 13. Bf1 {[%emt 0:08:43]} Be6 {[%emt 0:03:01]} 14. Nd2 {[%emt 0:04:16]} Qd7 {[%emt 0:02:29]} 15. Nf3 {[%emt 0:05:32]} Rfe8 {[%emt 0:01:31]} 16. Qd2 {[%emt 0:02:45]} f6 {[%emt 0:01:32]} 17. Bf4 {[%emt 0:04:19]} g5 {[%emt 0:02:43]} 18. Bg3 {[%emt 0:07:58]} h5 {[%emt 0:11:07]} 19. h4 {[%emt 0:04:02]} g4 {[%emt 0:02:20]} 20. Nh2 {[%emt 0:02:58]} Nxg3 {[%emt 0:01:02]} 21. fxg3 {[%emt 0:00:08]} Kg7 {[%emt 0:03:55]} 22. Be2 {[%emt 0:04:53]} Bd6 {[%emt 0:00:16]} 23. Nf1 {[%emt 0:00:08]} Qc7 {[%emt 0:02:10]} 24. Bd1 {[%emt 0:03:23]} Bf5 {[%emt 0:06:46]} 25. Ba4 {[%emt 0:03:36]} Rxe1 {[%emt 0:05:36]} 26. Rxe1 {[%emt 0:00:19]} Bd3 {[%emt 0:03:03]} 27. Qf2 {[%emt 0:05:52]} Rf8 {[%emt 0:00:49]} 28. Bc2 {[%emt 0:01:26]} f5 {[%emt 0:01:20]} 29. Re6 {[%emt 0:03:56]} f4 {[%emt 0:01:44]} 30. Bxd3 {[%emt 0:01:19]} cxd3 {[%emt 0:00:09]} 31. Qd2 {[%emt 0:01:20]} Qd7 {[%emt 0:00:35]} 32. Qe1 {[%emt 0:02:58]} fxg3 {[%emt 0:00:52]} 33. Re5 {[%emt 0:00:39]} Rxf1+ {[%emt 0:01:26]} 34. Kxf1 {[%emt 0:00:37]} Qf7+ {[%emt 0:00:55]} 35. Kg1 {[%emt 0:00:04]} Bxe5 {[%emt 0:00:44]} 36. Qxe5+ {[%emt 0:00:37]} Kh6 {[%emt 0:00:49]} 37. Qxg3 {[%emt 0:00:15]} Qf5 {[%emt 0:00:01]} 38. Qe3+ {[%emt 0:00:55]} Kg6 {[%emt 0:00:21]} 39. Qe8+ {[%emt 0:00:17]} Kg7 {[%emt 0:00:27]} 40. Qe7+ {[%emt 0:00:34]} Kg6 {[%emt 0:00:11]} 41. Qe8+ {[%emt 0:30:42]} 1/2-1/2

[Event "22nd OIBM 2018"]
[Site "Gmund am Tegernsee"]
[Date "2018.11.01"]
[Round "6"]
[White "Morawietz, Dieter"]
[Black "Pasti, Aron"]
[Result "1-0"]
[ECO "C77"]
[WhiteElo "2408"]
[BlackElo "2085"]
[Annotator "ChessBase"]
[PlyCount "64"]
[EventDate "2018.10.27"]
[EventType "swiss"]
[EventCountry "GER"]
[SourceTitle "playchess.com"]
[Source "ChessBase"]
[SourceQuality "1"]
[TimeControl "40/5400+30:1800+30"]

1. e4 {[%emt 0:00:00]} e5 {[%emt 0:00:00]} 2. Nf3 {[%emt 0:00:00]} Nc6 {[%emt 0:00:00]} 3. Bb5 {[%emt 0:00:02]} a6 {[%emt 0:00:00]} 4. Ba4 {[%emt 0:00:15]} Nf6 {[%emt 0:00:00]} 5. d3 {[%emt 0:00:24]} b5 {[%emt 0:00:33]} 6. Bb3 {[%emt 0:00:11]} Be7 {[%emt 0:01:23]} 7. c3 {[%emt 0:01:21]} O-O {[%emt 0:02:15]} 8. O-O {[%emt 0:01:04]} d5 {[%emt 0:03:22]} 9. Bg5 {[%emt 0:10:29]} dxe4 {[%emt 0:02:56]} 10. Bxf6 {[%emt 0:06:15]} Bxf6 {[%emt 0:00:27]} 11. dxe4 {[%emt 0:00:11]} Qxd1 {[%emt 0:03:00]} 12. Rxd1 {[%emt 0:00:39]} Na5 {[%emt 0:01:45]} 13. Bc2 {[%emt 0:00:15]} Nc4 {[%emt 0:03:34]} 14. b3 {[%emt 0:02:25]} Nd6 {[%emt 0:00:13]} 15. Nbd2 {[%emt 0:00:22]} Bb7 {[%emt 0:00:55]} 16. Re1 {[%emt 0:03:01]} g6 {[%emt 0:03:03]} 17. b4 {[%emt 0:04:50]} Rfd8 {[%emt 0:01:50]} 18. Nb3 {[%emt 0:00:42]} Nc4 {[%emt 0:00:13]} 19. Nc5 {[%emt 0:00:33]} Bc6 {[%emt 0:00:44]} 20. Bb3 {[%emt 0:19:19]} Nd2 {[%emt 0:14:04]} 21. Nxd2 {[%emt 0:00:59]} Rxd2 {[%emt 0:00:03]} 22. Rad1 {[%emt 0:10:51]} Rd6 {[%emt 0:01:01]} 23. Kf1 {[%emt 0:08:42]} Kf8 {[%emt 0:06:36]} 24. Bd5 {[%emt 0:12:02]} Rad8 {[%emt 0:02:46]} 25. Ke2 {[%emt 0:00:12]} Bxd5 {[%emt 0:00:55]} 26. Rxd5 {[%emt 0:00:13]} Rxd5 {[%emt 0:00:26]} 27. exd5 {[%emt 0:00:13]} Ra8 {[%emt 0:03:55]} 28. a4 {[%emt 0:04:22]} bxa4 {[%emt 0:06:34]} 29. Ra1 {[%emt 0:04:10]} Be7 {[%emt 0:01:02]} 30. Nd7+ {[%emt 0:01:42]} Kg7 {[%emt 0:00:26]} 31. Nxe5 {[%emt 0:03:30]} Bxb4 {[%emt 0:00:43]} 32. cxb4 {[%emt 0:00:48]} Re8 {[%emt 0:00:26]} 1-0